[Event "Titled Tuesday Blitz May 16 Late 2023"]
[White "Haszon, David"]
[Black "Hayrapetyan, Hovik"]
[WhiteFideId "733610"]
[BlackFideId "13302639"]
[WhiteElo "2210"]
[BlackElo "2348"]
[Result "0-1"]
[Round "02"]
[TimeControl "180+2"]
[Date "2023.05.16"]
[WhiteClock "0:00:09"]
[BlackClock "0:00:52"]

1. d4 {[%clk 0:03:00]}  Nf6 {[%clk 0:02:58]} 2. Bf4 {[%clk 0:03:00]}  d5 {[%clk 0:02:55]} 3. e3 {[%clk 0:02:58]}  c5 {[%clk 0:02:48]} 4. Nd2 {[%clk 0:02:57]}  Nc6 {[%clk 0:02:49]} 5. Ngf3 {[%clk 0:02:54]}  Bg4 {[%clk 0:02:48]} 6. c3 {[%clk 0:02:46]}  e6 {[%clk 0:02:47]} 7. Qb3 {[%clk 0:02:39]}  Qb6 {[%clk 0:02:38]} 8. Ne5 {[%clk 0:02:35]}  Bf5 {[%clk 0:02:30]} 9. Bb5 {[%clk 0:02:32]}  Rc8 {[%clk 0:02:26]} 10. O-O {[%clk 0:02:18]}  Be7 {[%clk 0:02:26]} 11. h3 {[%clk 0:02:13]}  O-O {[%clk 0:02:24]} 12. g4 {[%clk 0:02:06]}  Bg6 {[%clk 0:02:18]} 13. g5 {[%clk 0:02:06]}  Nh5 {[%clk 0:02:01]} 14. Nd7 {[%clk 0:02:04]}  Qd8 {[%clk 0:02:01]} 15. Nxf8 {[%clk 0:02:03]}  Kxf8 {[%clk 0:02:02]} 16. Bxc6 {[%clk 0:01:56]}  bxc6 {[%clk 0:01:58]} 17. h4 {[%clk 0:01:41]}  Nxf4 {[%clk 0:01:57]} 18. exf4 {[%clk 0:01:41]}  Qc7 {[%clk 0:01:57]} 19. c4 {[%clk 0:01:26]}  Qxf4 {[%clk 0:01:49]} 20. Qe3 {[%clk 0:01:27]}  Qg4+ {[%clk 0:01:39]} 21. Qg3 {[%clk 0:01:27]}  Qxd4 {[%clk 0:01:39]} 22. Rfd1 {[%clk 0:01:19]}  Bh5 {[%clk 0:01:23]} 23. Nb3 {[%clk 0:01:10]}  Qxc4 {[%clk 0:01:21]} 24. Rdc1 {[%clk 0:01:11]}  Qb4 {[%clk 0:01:14]} 25. a3 {[%clk 0:00:35]}  Qb5 {[%clk 0:01:13]} 26. Qc3 {[%clk 0:00:30]}  c4 {[%clk 0:01:09]} 27. Nd4 {[%clk 0:00:29]}  Qb6 {[%clk 0:01:09]} 28. b4 {[%clk 0:00:25]}  c5 {[%clk 0:01:05]} 29. bxc5 {[%clk 0:00:26]}  Bxc5 {[%clk 0:01:06]} 30. Nc2 {[%clk 0:00:14]}  Bxf2+ {[%clk 0:01:04]} 31. Kg2 {[%clk 0:00:15]}  Bc5 {[%clk 0:01:01]} 32. Rab1 {[%clk 0:00:15]}  Qd6 {[%clk 0:00:57]} 33. Rb7 {[%clk 0:00:16]}  d4 {[%clk 0:00:55]} 34. Qg3 {[%clk 0:00:09]}  Qd5+ {[%clk 0:00:52]} 0-1


[Site "https://www.chess.com"]

[Event "Titled Tuesday Blitz May 16 Late 2023"]
[White "Fernandez Guillen, Ernesto J."]
[Black "Plotnikov, Pavel"]
[WhiteFideId "3512428"]
[BlackFideId "4170342"]
[WhiteElo "2429"]
[BlackElo "2298"]
[Result "1-0"]
[Round "02"]
[TimeControl "180+2"]
[Date "2023.05.16"]
[WhiteClock "0:00:18"]
[BlackClock "0:00:00"]

1. e4 {[%clk 0:03:00]}  e6 {[%clk 0:02:56]} 2. Nf3 {[%clk 0:02:56]}  d5 {[%clk 0:02:56]} 3. Nc3 {[%clk 0:02:54]}  Nf6 {[%clk 0:02:55]} 4. e5 {[%clk 0:02:53]}  Ng8 {[%clk 0:02:55]} 5. d4 {[%clk 0:02:54]}  c5 {[%clk 0:02:55]} 6. Ne2 {[%clk 0:02:55]}  cxd4 {[%clk 0:02:54]} 7. Nexd4 {[%clk 0:02:56]}  Ne7 {[%clk 0:02:54]} 8. Bd3 {[%clk 0:02:55]}  Nbc6 {[%clk 0:02:54]} 9. c3 {[%clk 0:02:55]}  Nf5 {[%clk 0:02:47]} 10. O-O {[%clk 0:02:49]}  Be7 {[%clk 0:02:44]} 11. Re1 {[%clk 0:02:42]}  Ncxd4 {[%clk 0:02:26]} 12. Nxd4 {[%clk 0:02:40]}  Nxd4 {[%clk 0:02:25]} 13. cxd4 {[%clk 0:02:41]}  O-O {[%clk 0:02:24]} 14. Re3 {[%clk 0:02:34]}  g6 {[%clk 0:02:15]} 15. Rh3 {[%clk 0:02:33]}  Re8 {[%clk 0:01:51]} 16. Qf3 {[%clk 0:01:53]}  f5 {[%clk 0:00:54]} 17. exf6 {[%clk 0:01:52]}  Bxf6 {[%clk 0:00:54]} 18. Rxh7 {[%clk 0:01:51]}  Kxh7 {[%clk 0:00:52]} 19. Qh5+ {[%clk 0:01:52]}  Kg8 {[%clk 0:00:51]} 20. Qxg6+ {[%clk 0:01:45]}  Kf8 {[%clk 0:00:37]} 21. Bh6+ {[%clk 0:01:40]}  Ke7 {[%clk 0:00:36]} 22. Rc1 {[%clk 0:01:33]}  Rh8 {[%clk 0:00:30]} 23. Bg7 {[%clk 0:01:31]}  Bxg7 {[%clk 0:00:28]} 24. Qxg7+ {[%clk 0:01:32]}  Kd6 {[%clk 0:00:28]} 25. Qe5+ {[%clk 0:00:59]}  Ke7 {[%clk 0:00:26]} 26. Rc7+ {[%clk 0:00:59]}  Qxc7 {[%clk 0:00:26]} 27. Qxc7+ {[%clk 0:01:00]}  Bd7 {[%clk 0:00:26]} 28. Bb5 {[%clk 0:00:51]}  Rhd8 {[%clk 0:00:25]} 29. Bxd7 {[%clk 0:00:34]}  Rxd7 {[%clk 0:00:25]} 30. Qf4 {[%clk 0:00:33]}  Rc8 {[%clk 0:00:25]} 31. h4 {[%clk 0:00:33]}  Rf8 {[%clk 0:00:22]} 32. Qg5+ {[%clk 0:00:33]}  Kd6 {[%clk 0:00:22]} 33. h5 {[%clk 0:00:32]}  Rdf7 {[%clk 0:00:22]} 34. Qe5+ {[%clk 0:00:21]}  Kd7 {[%clk 0:00:22]} 35. Qe3 {[%clk 0:00:20]}  Rf5 {[%clk 0:00:19]} 36. g4 {[%clk 0:00:20]}  Rf4 {[%clk 0:00:19]} 37. Qg3 {[%clk 0:00:20]}  Rxd4 {[%clk 0:00:18]} 38. h6 {[%clk 0:00:19]}  Rg8 {[%clk 0:00:14]} 39. g5 {[%clk 0:00:19]}  Re4 {[%clk 0:00:09]} 40. h7 {[%clk 0:00:18]}  Rh8 {[%clk 0:00:00]} 41. g6 {[%clk 0:00:18]} 1-0


[Site "https://www.chess.com"]

[Event "Titled Tuesday Blitz May 16 Late 2023"]
[White "Chen, Ryo"]
[Black "Janaszak, Dawid"]
[WhiteFideId "7003072"]
[BlackFideId "1119206"]
[WhiteElo "2169"]
[BlackElo "2220"]
[Result "0-1"]
[Round "02"]
[TimeControl "180+2"]
[Date "2023.05.16"]
[WhiteClock "0:00:08"]
[BlackClock "0:00:39"]

1. e4 {[%clk 0:03:00]}  c5 {[%clk 0:02:59]} 2. Nf3 {[%clk 0:02:59]}  Nc6 {[%clk 0:03:00]} 3. d4 {[%clk 0:02:56]}  cxd4 {[%clk 0:02:59]} 4. Nxd4 {[%clk 0:02:57]}  g6 {[%clk 0:03:00]} 5. Nc3 {[%clk 0:02:55]}  Bg7 {[%clk 0:03:00]} 6. Nb3 {[%clk 0:02:53]}  Nf6 {[%clk 0:02:58]} 7. Be2 {[%clk 0:02:53]}  O-O {[%clk 0:02:58]} 8. O-O {[%clk 0:02:50]}  b6 {[%clk 0:02:58]} 9. Bg5 {[%clk 0:02:43]}  d6 {[%clk 0:02:58]} 10. Qd2 {[%clk 0:02:41]}  Bb7 {[%clk 0:02:56]} 11. Bh6 {[%clk 0:02:35]}  Rc8 {[%clk 0:02:55]} 12. Rad1 {[%clk 0:02:33]}  Ne5 {[%clk 0:02:53]} 13. Bxg7 {[%clk 0:02:29]}  Kxg7 {[%clk 0:02:54]} 14. f4 {[%clk 0:02:18]}  Ned7 {[%clk 0:02:36]} 15. Qe3 {[%clk 0:02:14]}  Qc7 {[%clk 0:02:33]} 16. Bf3 {[%clk 0:01:56]}  e5 {[%clk 0:02:31]} 17. f5 {[%clk 0:01:49]}  Nc5 {[%clk 0:02:27]} 18. g4 {[%clk 0:01:40]}  h6 {[%clk 0:02:13]} 19. h4 {[%clk 0:01:24]}  Nxb3 {[%clk 0:02:11]} 20. axb3 {[%clk 0:01:22]}  gxf5 {[%clk 0:01:51]} 21. exf5 {[%clk 0:01:11]}  e4 {[%clk 0:01:35]} 22. Be2 {[%clk 0:01:00]}  Qc5 {[%clk 0:01:15]} 23. Qxc5 {[%clk 0:00:54]}  dxc5 {[%clk 0:01:16]} 24. g5 {[%clk 0:00:39]}  hxg5 {[%clk 0:01:15]} 25. hxg5 {[%clk 0:00:40]}  Nh7 {[%clk 0:01:15]} 26. f6+ {[%clk 0:00:37]}  Kg6 {[%clk 0:01:14]} 27. Bg4 {[%clk 0:00:36]}  Nxg5 {[%clk 0:01:10]} 28. Bf5+ {[%clk 0:00:29]}  Kh6 {[%clk 0:01:03]} 29. Kf2 {[%clk 0:00:28]}  e3+ {[%clk 0:00:55]} 30. Kxe3 {[%clk 0:00:26]}  Rce8+ {[%clk 0:00:55]} 31. Kf4 {[%clk 0:00:24]}  Ne6+ {[%clk 0:00:44]} 32. Kg3 {[%clk 0:00:14]}  Rg8+ {[%clk 0:00:42]} 33. Kf2 {[%clk 0:00:14]}  Rg2+ {[%clk 0:00:41]} 34. Ke3 {[%clk 0:00:12]}  Nd4+ {[%clk 0:00:40]} 35. Kd3 {[%clk 0:00:12]}  Ba6+ {[%clk 0:00:40]} 36. Nb5 {[%clk 0:00:08]}  Bxb5+ {[%clk 0:00:39]} 0-1


[Site "https://www.chess.com"]

[Event "Titled Tuesday Blitz May 16 Late 2023"]
[White "Schmakel, Sam"]
[Black "Huber, Benedikt"]
[WhiteFideId "2039311"]
[BlackFideId "12923583"]
[WhiteElo "2356"]
[BlackElo "2215"]
[Result "1-0"]
[Round "02"]
[TimeControl "180+2"]
[Date "2023.05.16"]
[WhiteClock "0:00:02"]
[BlackClock "0:00:00"]

1. d4 {[%clk 0:03:00]}  e6 {[%clk 0:02:59]} 2. c4 {[%clk 0:03:00]}  f5 {[%clk 0:02:59]} 3. Nf3 {[%clk 0:03:00]}  Nf6 {[%clk 0:02:59]} 4. g3 {[%clk 0:03:00]}  Be7 {[%clk 0:02:59]} 5. Bg2 {[%clk 0:03:01]}  O-O {[%clk 0:02:59]} 6. O-O {[%clk 0:03:01]}  d6 {[%clk 0:03:00]} 7. Nc3 {[%clk 0:03:01]}  Ne4 {[%clk 0:03:00]} 8. Qc2 {[%clk 0:02:59]}  Nxc3 {[%clk 0:03:01]} 9. bxc3 {[%clk 0:02:59]}  Bf6 {[%clk 0:03:01]} 10. e4 {[%clk 0:02:58]}  Nc6 {[%clk 0:02:55]} 11. Ba3 {[%clk 0:02:45]}  e5 {[%clk 0:02:24]} 12. Rad1 {[%clk 0:02:40]}  exd4 {[%clk 0:02:18]} 13. cxd4 {[%clk 0:02:41]}  fxe4 {[%clk 0:02:18]} 14. Qxe4 {[%clk 0:02:41]}  Re8 {[%clk 0:02:18]} 15. Qf4 {[%clk 0:02:35]}  Rf8 {[%clk 0:02:14]} 16. Qe3 {[%clk 0:02:20]}  Bg4 {[%clk 0:01:51]} 17. h3 {[%clk 0:02:20]}  Bh5 {[%clk 0:01:51]} 18. g4 {[%clk 0:02:13]}  Bg6 {[%clk 0:01:47]} 19. c5 {[%clk 0:01:15]}  Qd7 {[%clk 0:01:28]} 20. cxd6 {[%clk 0:01:11]}  cxd6 {[%clk 0:01:29]} 21. Ne5 {[%clk 0:01:08]}  Qc7 {[%clk 0:00:29]} 22. Nxg6 {[%clk 0:00:57]}  hxg6 {[%clk 0:00:30]} 23. Qe6+ {[%clk 0:00:57]}  Qf7 {[%clk 0:00:26]} 24. Qxf7+ {[%clk 0:00:50]}  Kxf7 {[%clk 0:00:26]} 25. Bxd6 {[%clk 0:00:47]}  Rfd8 {[%clk 0:00:26]} 26. Bd5+ {[%clk 0:00:44]}  Ke8 {[%clk 0:00:26]} 27. Rfe1+ {[%clk 0:00:43]}  Kd7 {[%clk 0:00:27]} 28. Bf4 {[%clk 0:00:32]}  Re8 {[%clk 0:00:24]} 29. Be3 {[%clk 0:00:19]}  Rab8 {[%clk 0:00:12]} 30. Kg2 {[%clk 0:00:16]}  Nb4 {[%clk 0:00:12]} 31. Bf7 {[%clk 0:00:15]}  Re7 {[%clk 0:00:12]} 32. Bxg6 {[%clk 0:00:16]}  Nxa2 {[%clk 0:00:12]} 33. d5 {[%clk 0:00:08]}  Nc3 {[%clk 0:00:11]} 34. Rd3 {[%clk 0:00:08]}  Rd8 {[%clk 0:00:09]} 35. Rc1 {[%clk 0:00:06]}  Nb5 {[%clk 0:00:06]} 36. d6 {[%clk 0:00:06]}  Nxd6 {[%clk 0:00:06]} 37. Bxa7 {[%clk 0:00:04]}  Be5 {[%clk 0:00:04]} 38. Bb6 {[%clk 0:00:04]}  Rc8 {[%clk 0:00:04]} 39. Re1 {[%clk 0:00:04]}  Rc6 {[%clk 0:00:04]} 40. Ba5 {[%clk 0:00:02]}  Kc8 {[%clk 0:00:04]} 41. Bb4 {[%clk 0:00:02]}  Re6 {[%clk 0:00:04]} 42. Rxe5 {[%clk 0:00:02]}  Rxe5 {[%clk 0:00:04]} 43. Rxd6 {[%clk 0:00:03]}  Rxd6 {[%clk 0:00:05]} 44. Bxd6 {[%clk 0:00:04]}  Rd5 {[%clk 0:00:04]} 45. Bf5+ {[%clk 0:00:04]}  Kd8 {[%clk 0:00:04]} 46. Bf4 {[%clk 0:00:05]}  b5 {[%clk 0:00:04]} 47. Kf3 {[%clk 0:00:05]}  b4 {[%clk 0:00:05]} 48. Ke4 {[%clk 0:00:06]}  Ra5 {[%clk 0:00:05]} 49. Bd2 {[%clk 0:00:06]}  Ke8 {[%clk 0:00:04]} 50. Kd4 {[%clk 0:00:06]}  Ra2 {[%clk 0:00:04]} 51. Bxb4 {[%clk 0:00:06]}  Rxf2 {[%clk 0:00:03]} 52. Ke4 {[%clk 0:00:06]}  Kf7 {[%clk 0:00:04]} 53. Ke3 {[%clk 0:00:05]}  Rb2 {[%clk 0:00:03]} 54. Bd6 {[%clk 0:00:05]}  Rb3+ {[%clk 0:00:04]} 55. Kf4 {[%clk 0:00:05]}  Rxh3 {[%clk 0:00:03]} 56. g5 {[%clk 0:00:05]}  Rh1 {[%clk 0:00:04]} 57. g6+ {[%clk 0:00:05]}  Ke8 {[%clk 0:00:04]} 58. Ke5 {[%clk 0:00:05]}  Re1+ {[%clk 0:00:04]} 59. Kd5 {[%clk 0:00:05]}  Rd1+ {[%clk 0:00:05]} 60. Ke6 {[%clk 0:00:06]}  Re1+ {[%clk 0:00:03]} 61. Be5 {[%clk 0:00:06]}  Re2 {[%clk 0:00:04]} 62. Bd3 {[%clk 0:00:06]}  Re3 {[%clk 0:00:04]} 63. Bb5+ {[%clk 0:00:07]}  Kd8 {[%clk 0:00:04]} 64. Kf5 {[%clk 0:00:03]}  Ke7 {[%clk 0:00:03]} 65. Bxg7 {[%clk 0:00:03]}  Rf3+ {[%clk 0:00:03]} 66. Kg4 {[%clk 0:00:02]}  Rf1 {[%clk 0:00:00]} 67. Bxf1 {[%clk 0:00:02]} 1-0


[Site "https://www.chess.com"]

[Event "Titled Tuesday Blitz May 16 Late 2023"]
[White "Loiacono, Antonio"]
[Black "Klukin, Kirill"]
[WhiteFideId "895415"]
[BlackFideId "24199273"]
[WhiteElo "2257"]
[BlackElo "2344"]
[Result "0-1"]
[Round "02"]
[TimeControl "180+2"]
[Date "2023.05.16"]
[WhiteClock "0:00:49"]
[BlackClock "0:01:55"]

1. e4 {[%clk 0:03:00]}  c5 {[%clk 0:02:59]} 2. Nf3 {[%clk 0:02:59]}  Nc6 {[%clk 0:02:59]} 3. d4 {[%clk 0:02:59]}  cxd4 {[%clk 0:02:59]} 4. Nxd4 {[%clk 0:03:00]}  e5 {[%clk 0:03:00]} 5. Nb5 {[%clk 0:03:00]}  d6 {[%clk 0:03:00]} 6. N5c3 {[%clk 0:02:57]}  Be7 {[%clk 0:03:00]} 7. Nd5 {[%clk 0:02:56]}  Be6 {[%clk 0:03:00]} 8. Nbc3 {[%clk 0:02:55]}  Rc8 {[%clk 0:02:59]} 9. g3 {[%clk 0:02:49]}  Bg5 {[%clk 0:02:59]} 10. Bg2 {[%clk 0:02:48]}  Bxc1 {[%clk 0:02:58]} 11. Rxc1 {[%clk 0:02:49]}  Nf6 {[%clk 0:02:59]} 12. O-O {[%clk 0:02:48]}  O-O {[%clk 0:02:59]} 13. Nxf6+ {[%clk 0:02:45]}  Qxf6 {[%clk 0:02:56]} 14. Qxd6 {[%clk 0:02:45]}  Rfd8 {[%clk 0:02:56]} 15. Qa3 {[%clk 0:02:40]}  Nd4 {[%clk 0:02:56]} 16. Qxa7 {[%clk 0:02:35]}  b5 {[%clk 0:02:43]} 17. Rfe1 {[%clk 0:02:30]}  Ra8 {[%clk 0:02:27]} 18. Qc5 {[%clk 0:02:24]}  Rdc8 {[%clk 0:02:27]} 19. Qd6 {[%clk 0:02:20]}  Rc6 {[%clk 0:02:18]} 20. Qb4 {[%clk 0:02:14]}  Rac8 {[%clk 0:02:08]} 21. Rf1 {[%clk 0:01:29]}  Rc4 {[%clk 0:01:58]} 22. Qd6 {[%clk 0:01:26]}  b4 {[%clk 0:01:53]} 23. Nd5 {[%clk 0:01:19]}  Bxd5 {[%clk 0:01:51]} 24. Qxf6 {[%clk 0:01:07]}  gxf6 {[%clk 0:01:52]} 25. exd5 {[%clk 0:01:07]}  Ne2+ {[%clk 0:01:53]} 26. Kh1 {[%clk 0:01:08]}  Nxc1 {[%clk 0:01:54]} 27. Rxc1 {[%clk 0:01:06]}  Rxc2 {[%clk 0:01:54]} 28. Rxc2 {[%clk 0:01:04]}  Rxc2 {[%clk 0:01:55]} 29. Be4 {[%clk 0:01:03]}  Rxf2 {[%clk 0:01:54]} 30. b3 {[%clk 0:01:01]}  Rxa2 {[%clk 0:01:54]} 31. g4 {[%clk 0:00:59]}  Rd2 {[%clk 0:01:54]} 32. h4 {[%clk 0:00:58]}  h6 {[%clk 0:01:55]} 33. h5 {[%clk 0:00:58]}  Kf8 {[%clk 0:01:55]} 34. Kg1 {[%clk 0:00:57]}  Ke7 {[%clk 0:01:56]} 35. Kf1 {[%clk 0:00:58]}  Kd6 {[%clk 0:01:56]} 36. Ke1 {[%clk 0:00:58]}  Rd4 {[%clk 0:01:57]} 37. Bf3 {[%clk 0:00:57]}  e4 {[%clk 0:01:56]} 38. Be2 {[%clk 0:00:56]}  Kxd5 {[%clk 0:01:57]} 39. Kf2 {[%clk 0:00:56]}  Ke5 {[%clk 0:01:57]} 40. Ke3 {[%clk 0:00:56]}  Rd7 {[%clk 0:01:55]} 41. Bc4 {[%clk 0:00:56]}  f5 {[%clk 0:01:55]} 42. gxf5 {[%clk 0:00:53]}  Kxf5 {[%clk 0:01:56]} 43. Bf1 {[%clk 0:00:54]}  Ke5 {[%clk 0:01:56]} 44. Be2 {[%clk 0:00:53]}  f5 {[%clk 0:01:56]} 45. Bb5 {[%clk 0:00:52]}  f4+ {[%clk 0:01:57]} 46. Ke2 {[%clk 0:00:52]}  Ra7 {[%clk 0:01:57]} 47. Ba4 {[%clk 0:00:49]}  Kd4 {[%clk 0:01:55]} 0-1


[Site "https://www.chess.com"]

[Event "Titled Tuesday Blitz May 16 Late 2023"]
[White "Weetik, Vjacheslav"]
[Black "The_Sherman_Variation"]
[WhiteFideId "4153472"]
[WhiteElo "2469"]
[BlackElo "2529"]
[Result "1-0"]
[Round "02"]
[TimeControl "180+2"]
[Date "2023.05.16"]
[WhiteClock "0:00:28"]
[BlackClock "0:01:00"]

1. d4 {[%clk 0:02:58]}  h6 {[%clk 0:02:56]} 2. e4 {[%clk 0:02:57]}  d5 {[%clk 0:02:56]} 3. exd5 {[%clk 0:02:54]}  Nf6 {[%clk 0:02:53]} 4. c4 {[%clk 0:02:54]}  c6 {[%clk 0:02:53]} 5. dxc6 {[%clk 0:02:49]}  Nxc6 {[%clk 0:02:54]} 6. d5 {[%clk 0:02:39]}  Nb8 {[%clk 0:02:47]} 7. Nc3 {[%clk 0:02:37]}  g5 {[%clk 0:02:42]} 8. Nf3 {[%clk 0:02:23]}  Bg7 {[%clk 0:02:41]} 9. Bd3 {[%clk 0:02:17]}  Na6 {[%clk 0:02:37]} 10. O-O {[%clk 0:02:16]}  O-O {[%clk 0:02:27]} 11. Re1 {[%clk 0:02:14]}  Bg4 {[%clk 0:02:23]} 12. h3 {[%clk 0:02:14]}  Bh5 {[%clk 0:02:20]} 13. g4 {[%clk 0:02:14]}  Bg6 {[%clk 0:02:19]} 14. Bxg6 {[%clk 0:02:14]}  fxg6 {[%clk 0:02:20]} 15. Ne5 {[%clk 0:02:15]}  Nd7 {[%clk 0:01:59]} 16. Nxg6 {[%clk 0:02:13]}  Rf7 {[%clk 0:01:59]} 17. Be3 {[%clk 0:01:36]}  Rf6 {[%clk 0:01:56]} 18. Qc2 {[%clk 0:01:12]}  Qe8 {[%clk 0:01:47]} 19. Nxe7+ {[%clk 0:01:05]}  Qxe7 {[%clk 0:01:48]} 20. Bd4 {[%clk 0:01:05]}  Qf7 {[%clk 0:01:44]} 21. Bxf6 {[%clk 0:01:05]}  Nxf6 {[%clk 0:01:45]} 22. Rad1 {[%clk 0:01:02]}  Qd7 {[%clk 0:01:43]} 23. d6 {[%clk 0:01:01]}  Nc5 {[%clk 0:01:27]} 24. Re7 {[%clk 0:00:59]}  Qd8 {[%clk 0:01:23]} 25. Qg6 {[%clk 0:00:54]}  Qf8 {[%clk 0:01:23]} 26. Nd5 {[%clk 0:00:45]}  Nxd5 {[%clk 0:01:19]} 27. Rxd5 {[%clk 0:00:46]}  Qf6 {[%clk 0:01:08]} 28. Rxg7+ {[%clk 0:00:37]}  Qxg7 {[%clk 0:01:07]} 29. Qxg7+ {[%clk 0:00:38]}  Kxg7 {[%clk 0:01:07]} 30. Rxc5 {[%clk 0:00:38]}  Rd8 {[%clk 0:01:04]} 31. Rc7+ {[%clk 0:00:38]}  Kf6 {[%clk 0:01:04]} 32. Rxb7 {[%clk 0:00:33]}  Rxd6 {[%clk 0:01:04]} 33. Rxa7 {[%clk 0:00:33]}  Ke5 {[%clk 0:01:04]} 34. Kg2 {[%clk 0:00:31]}  Rd2 {[%clk 0:01:03]} 35. b4 {[%clk 0:00:31]}  Rb2 {[%clk 0:01:03]} 36. a3 {[%clk 0:00:29]}  Kd4 {[%clk 0:01:03]} 37. c5 {[%clk 0:00:29]}  Kd5 {[%clk 0:01:03]} 38. Rd7+ {[%clk 0:00:29]}  Kc4 {[%clk 0:01:03]} 39. Rd6 {[%clk 0:00:29]}  Kb5 {[%clk 0:01:03]} 40. Rxh6 {[%clk 0:00:29]}  Rb3 {[%clk 0:01:00]} 41. Rb6+ {[%clk 0:00:28]} 1-0


[Site "https://www.chess.com"]

[Event "Titled Tuesday Blitz May 16 Late 2023"]
[White "Timmermans, Mark"]
[Black "Taboas Rodriguez, Daniel"]
[WhiteFideId "1026399"]
[BlackFideId "2208466"]
[WhiteElo "2460"]
[BlackElo "2365"]
[Result "1-0"]
[Round "02"]
[TimeControl "180+2"]
[Date "2023.05.16"]
[WhiteClock "0:02:51"]
[BlackClock "0:00:00"]

1. b4 {[%clk 0:02:59]}  e5 {[%clk 0:02:57]} 2. Bb2 {[%clk 0:02:59]}  Bxb4 {[%clk 0:02:58]} 3. Bxe5 {[%clk 0:02:58]}  Nf6 {[%clk 0:02:59]} 4. Nc3 {[%clk 0:02:59]}  Nc6 {[%clk 0:02:59]} 5. Bxf6 {[%clk 0:03:00]}  Qxf6 {[%clk 0:02:59]} 6. Nd5 {[%clk 0:03:01]}  Qd6 {[%clk 0:02:56]} 7. c4 {[%clk 0:03:00]}  O-O {[%clk 0:02:55]} 8. Nf3 {[%clk 0:03:00]}  Re8 {[%clk 0:02:54]} 9. e3 {[%clk 0:03:00]}  Ba5 {[%clk 0:02:49]} 10. Be2 {[%clk 0:03:00]}  Ne7 {[%clk 0:02:48]} 11. Nf4 {[%clk 0:03:01]}  Qh6 {[%clk 0:02:40]} 12. O-O {[%clk 0:02:59]}  d6 {[%clk 0:02:41]} 13. d4 {[%clk 0:02:58]}  c6 {[%clk 0:02:35]} 14. d5 {[%clk 0:02:56]}  c5 {[%clk 0:00:00]} 15. Qa4 {[%clk 0:02:51]} 1-0


[Site "https://www.chess.com"]

[Event "Titled Tuesday Blitz May 16 Late 2023"]
[White "Safin, Robert"]
[Black "Wu, Derek"]
[WhiteFideId "34189120"]
[BlackFideId "30914558"]
[WhiteElo "2295"]
[BlackElo "2174"]
[Result "0-1"]
[Round "02"]
[TimeControl "180+2"]
[Date "2023.05.16"]
[WhiteClock "0:00:00"]
[BlackClock "0:00:11"]

1. e4 {[%clk 0:03:00]}  c5 {[%clk 0:02:59]} 2. c3 {[%clk 0:03:00]}  d5 {[%clk 0:02:58]} 3. exd5 {[%clk 0:03:01]}  Nf6 {[%clk 0:02:58]} 4. d4 {[%clk 0:03:02]}  Nxd5 {[%clk 0:02:53]} 5. Nf3 {[%clk 0:02:59]}  cxd4 {[%clk 0:02:52]} 6. Bc4 {[%clk 0:02:51]}  Nc6 {[%clk 0:02:48]} 7. Nxd4 {[%clk 0:02:47]}  e6 {[%clk 0:01:58]} 8. O-O {[%clk 0:02:43]}  Bd6 {[%clk 0:01:48]} 9. Bxd5 {[%clk 0:02:41]}  exd5 {[%clk 0:01:47]} 10. Re1+ {[%clk 0:02:37]}  Ne7 {[%clk 0:01:45]} 11. Bg5 {[%clk 0:02:29]}  O-O {[%clk 0:01:39]} 12. Nd2 {[%clk 0:02:27]}  f6 {[%clk 0:01:30]} 13. Bh4 {[%clk 0:02:24]}  Ng6 {[%clk 0:01:09]} 14. Bg3 {[%clk 0:02:23]}  Bc5 {[%clk 0:01:03]} 15. N2b3 {[%clk 0:01:59]}  Bb6 {[%clk 0:01:03]} 16. Qd2 {[%clk 0:01:58]}  Bd7 {[%clk 0:00:57]} 17. Rad1 {[%clk 0:01:57]}  Re8 {[%clk 0:00:56]} 18. h3 {[%clk 0:01:40]}  Ne5 {[%clk 0:00:55]} 19. Bxe5 {[%clk 0:01:20]}  fxe5 {[%clk 0:00:55]} 20. Nf3 {[%clk 0:01:21]}  d4 {[%clk 0:00:42]} 21. Nxe5 {[%clk 0:01:15]}  Ba4 {[%clk 0:00:38]} 22. cxd4 {[%clk 0:01:12]}  Qf6 {[%clk 0:00:36]} 23. Qd3 {[%clk 0:01:08]}  Kh8 {[%clk 0:00:30]} 24. Re4 {[%clk 0:00:54]}  Rf8 {[%clk 0:00:29]} 25. Rd2 {[%clk 0:00:48]}  Rad8 {[%clk 0:00:29]} 26. Kh1 {[%clk 0:00:24]}  Be8 {[%clk 0:00:28]} 27. Qe3 {[%clk 0:00:18]}  a5 {[%clk 0:00:27]} 28. Nc5 {[%clk 0:00:14]}  Bh5 {[%clk 0:00:12]} 29. Ncd7 {[%clk 0:00:10]}  Qd6 {[%clk 0:00:12]} 30. Nxf8 {[%clk 0:00:09]}  Rxf8 {[%clk 0:00:13]} 31. Qg5 {[%clk 0:00:07]}  Be8 {[%clk 0:00:12]} 32. Rf4 {[%clk 0:00:05]}  Rg8 {[%clk 0:00:09]} 33. Nf7+ {[%clk 0:00:04]}  Bxf7 {[%clk 0:00:10]} 34. Rxf7 {[%clk 0:00:05]}  Bd8 {[%clk 0:00:11]} 35. Qe5 {[%clk 0:00:05]}  Qh6 {[%clk 0:00:11]} 36. Rf3 {[%clk 0:00:00]}  Qxd2 {[%clk 0:00:11]} 0-1


[Site "https://www.chess.com"]